Cogmind - Beta 12 @@@ ROGUE MODE // 2023.11.24 @ 16:38:10 Player: Mozco Result: Destroyed by S-10 Pest with Light Assault Rifle Performance ------------- Evolutions (0) 0 Regions Visited (2) 400 Robots Destroyed (29) 145 Value Destroyed (582) 582 Prototype IDs (2) 40 Alien Tech Used (0) 0 Bonus (0) 0 TOTAL SCORE: 1167 Bonus ------- None Cogmind --------- Core Integrity 0/250 Matter 264/300 Energy 248/250 System Corruption 3% Temperature Cool (99) Movement Walking (190) Ox1 Location -10/Mines Parts ------- > --- POWER (1) -------- Ion Engine > --- PROPULSION (2) --- Aluminum Leg Aluminum Leg > --- UTILITY (2) ------ Medium Storage Unit Light Armor Plating > --- WEAPON (2) ------- Particle Gun Assault Rifle > --- INVENTORY (10) --- Aluminum Leg Aluminum Leg Heat Sink Improved Heat Sink Large Storage Unit Improved Terrain Scanner EM Pulse Gun EM Pulse Gun Rocket Launcher Mining Claw Peak State ------------ > --- POWER ------------ Ion Engine > --- PROPULSION ------- Aluminum Leg Aluminum Leg > --- UTILITY ---------- Medium Storage Unit Improved Terrain Scanner > --- WEAPON ----------- Particle Gun Assault Rifle > --- INVENTORY -------- Light Treads Aluminum Leg Aluminum Leg Heat Sink Improved Heat Sink Large Storage Unit Light Armor Plating Light Assault Rifle Mining Claw [Rating: 11] Favorites ----------- Power Ion Engine Engine Ion Engine Propulsion Aluminum Leg Treads Light Treads Leg Aluminum Leg Wheel Wheel Utility Improved Terrain Scanner Device Improved Terrain Scanner Storage Small Storage Unit Protection Light Armor Plating Weapon Assault Rifle Energy Gun Medium Laser Ballistic Gun Assault Rifle Build | -11 -10 -10 ------- Run | Jun Mat Min Slots Evolved . | . . . Power . | . . . Propulsion . | . . . Utility . | . . . Weapon . | . . . Parts Attached 23 | 8 14 1 Power 2 | 1 1 . Engine 2 | 1 1 . Core . | . . . Reactor . | . . . Propulsion 8 | 2 6 . Treads 2 | . 2 . Leg 4 | . 4 . Wheel 2 | 2 . . Hover . | . . . Flight . | . . . Utility 5 | 2 2 1 Device 1 | 1 . . Storage 3 | 1 2 . Processor . | . . . Hackware . | . . . Protection 1 | . . 1 Artifact . | . . . Weapon 8 | 3 5 . Energy Gun 3 | 2 1 . Energy Cannon . | . . . Ballistic Gun 5 | 1 4 . Ballistic Cannon . | . . . Launcher . | . . . Special Weapon . | . . . Impact Weapon . | . . . Slashing Weapon . | . . . Piercing Weapon . | . . . Special Melee Weapon . | . . . Unidentified Prototypes . | . . . Parts Lost 3 | . 3 . Power 1 | . 1 . Propulsion 1 | . 1 . Utility . | . . . Weapon 1 | . 1 . Highest Loss Streak 1 | . 1 . To Critical Strikes . | . . . Average Slot Usage (%) 97 | . 96 100 Engine 13 | . 13 14 Treads 5 | . 7 . Leg 20 | . 18 28 Wheel 1 | . 1 . Device 14 | . 14 14 Storage 14 | . 14 14 Energy Gun 10 | . 9 14 Ballistic Gun 15 | . 15 14 Naked Turns . | . . . Heaviest Build 30 | 15 30 21 Greatest Support 40 | 20 40 20 Greatest Overweight (x) 1 | . 1 1 Average Overweight (x) . | . . 1 Largest Inventory Capacity 15 | 8 15 10 Average Capacity 8 | 7 8 10 Most Carried 10 | 7 10 10 Average Carried 8 | 4 8 10 Final Capacity 10 | 8 10 10 Final Carried 10 | 7 10 10 Class Distribution -------------------- 55% | Scavenger-Mutant 44% | Mutant Dominant Class ---------------- Mutant | -10/Materials Scavenger-Mutant | -10/Mines Resources | -11 -10 -10 ----------- Run | Jun Mat Min Matter Collected 631 | 280 330 21 Remotely . | . . . Salvage Created 931 | 129 777 25 Parts 59 | 7 47 5 Haulers Intercepted 2 | . 2 . Recyclers Shooed 1 | 1 . . Parts Field Recycled . | . . . Retrieved Matter . | . . . Parts Self-Destructed . | . . . Prevented . | . . . Kills | -11 -10 -10 ------- Run | Jun Mat Min Combat Hostiles Destroyed 18 | . 16 2 Guns 16 | . 14 2 Classes Destroyed 9 | 3 6 . Worker 3 | 1 2 . Builder 1 | . 1 . Tunneler 2 | 2 . . Hauler 2 | . 2 . Recycler 1 | 1 . . Operator 1 | . 1 . Watcher 1 | . 1 . Swarmer 5 | . 3 2 Grunt 13 | . 13 . Best Kill Streak 4 | 2 4 2 Combat Bots Only 3 | . 3 2 Max Kills in Single Turn 2 | 1 2 1 Gunslinging . | . . . Exploded . | . . . Melee . | . . . Uniques/NPCs Destroyed . | . . . Combat | -11 -10 -10 -------- Run | Jun Mat Min Damage Taken 903 | . 818 85 Core 257 | . 249 8 Absorbed by Shields . | . . . Core Remaining (%) 100 | 100 . . Volleys Fired 100 | 11 84 5 Largest 2 | 2 2 2 Hottest 100 | 100 100 85 Shots Fired 176 | 22 144 10 Gun 176 | 22 144 10 Cannon . | . . . Launcher . | . . . Special . | . . . Kinetic 96 | . 91 5 Thermal 80 | 22 53 5 Explosive . | . . . Electromagnetic . | . . . Robot Hit Streak 11 | 6 11 2 Robot Miss Streak 4 | 4 4 4 Penetration Max . | . . . Secondary Targets . | . . . Shots Hit Robots 102 | 10 88 4 Core Hits 49 | 5 42 2 Critical Kills 1 | . 1 . Critical Parts Destroyed . | . . . Critical Strikes 4 | 1 3 . Burn 3 | 1 2 . Destroy 1 | . 1 . Melee Attacks . | . . . Impact . | . . . Slashing . | . . . Piercing . | . . . Sneak Attacks . | . . . Combat Hostiles . | . . . Follow-up Attacks . | . . . Damage Inflicted 1372 | 151 1136 85 Guns 1372 | 151 1136 85 Cannons . | . . . Explosions . | . . . Melee . | . . . Ramming . | . . . Kinetic 661 | . 621 40 Thermal 711 | 151 515 45 Explosive . | . . . Electromagnetic . | . . . Impact . | . . . Slashing . | . . . Piercing . | . . . Highest Corruption 3 | . 3 3 Average Corruption 2 | . 1 3 Corruption Purged . | . . . Corruption Blocked . | . . . Effects 5 | . 1 4 Message Errors 1 | . . 1 Matter Fused 2 | . . 2 Energy Discharges 2 | . 1 1 Overload Shots . | . . . Overflow Damage . | . . . Projectiles . | . . . Explosions . | . . . Melee . | . . . Knockbacks . | . . . Impact . | . . . Kinetic . | . . . Secondary . | . . . Self-Inflicted Damage . | . . . Shots . | . . . Rammed . | . . . Targets Rammed . | . . . Kicked . | . . . Crushed . | . . . Highest Temperature 392 | 193 392 99 Average Temperature 94 | 100 96 53 Received Heat Transfer 435 | . 435 . Effects 4 | . 4 . Interference 3 | . 3 . Matter Decay 1 | . 1 . Siege Activations . | . . . Robots Corrupted . | . . . Combat Hostiles . | . . . Parts Fried . | . . . Impact Corruptions . | . . . Robots Melted 2 | . 2 . Combat Hostiles 2 | . 2 . Parts Melted 4 | 1 3 . Heat Transferred 2220 | 518 1591 111 Parts Sabotaged . | . . . Parts Stolen . | . . . Parts Stripped . | . . . Power Chain Reactions . | . . . Missiles Intercepted . | . . . Alert | -11 -10 -10 ------- Run | Jun Mat Min Peak Influence 318 | 20 318 120 Initial 70 | . 13 70 Average 145 | 5 186 71 Maximum Alert Level 1 | . 1 . Low Security (%) 68 | 100 54 100 Level 1 31 | . 45 . Level 2 . | . . . Level 3 . | . . . Level 4 . | . . . Level 5 . | . . . High Security . | . . . Max Security . | . . . Squads Dispatched 5 | . 5 . Investigation 2 | . 2 . Extermination . | . . . Reinforcement 3 | . 3 . Assault . | . . . Garrison . | . . . Intercept . | . . . Searches Triggered . | . . . Construction Impeded . | . . . Haulers Reinforced . | . . . Active Scanning Responses . | . . . Cargo Convoy Interrupts . | . . . Stealth | -11 -10 -10 --------- Run | Jun Mat Min Distress Signals 2 | . 2 . Communications Jammed . | . . . Distress Signals . | . . . Times Spotted 30 | . 27 3 Peak Tracking Total 4 | . 4 3 Tactical Retreats 2 | . 2 . Traps | -11 -10 -10 ------- Run | Jun Mat Min Traps Triggered 4 | . 4 . Indirectly . | . . . Trap Hack Attempts . | . . . Triggered . | . . . Disarmed . | . . . Reprogrammed . | . . . Reused . | . . . Traps Extracted . | . . . Installed . | . . . Triggered . | . . . Machines | -11 -10 -10 ---------- Run | Jun Mat Min Machines Disabled . | . . . Max in Single Turn . | . . . Machines Repaired . | . . . Machines Sabotaged . | . . . Overloaded Fab Kills . | . . . Hacking | -11 -10 -10 --------- Run | Jun Mat Min Machines Accessed 5 | . 5 . Terminals 4 | . 4 . Fabricators . | . . . Repair Stations . | . . . Recycling Units 1 | . 1 . Scanalyzers . | . . . Garrison Access . | . . . Total Hacks 14 | . 14 . Successful 6 | . 6 . Failed 7 | . 7 . Catastrophic . | . . . Database Lockouts 1 | . 1 . Manual 6 | . 6 . Terminals 13 | . 13 . Fabricators . | . . . Repair Stations . | . . . Recycling Units 1 | . 1 . Scanalyzers . | . . . Garrison Access . | . . . Terminal Hacks 5 | . 5 . Robot Analysis 3 | . 3 . Prototype ID Bank 1 | . 1 . Emergency Access Points 1 | . 1 . Fabricator Hacks . | . . . Repair Station Hacks . | . . . Recycling Unit Hacks 1 | . 1 . Report Inventory 1 | . 1 . Scanalyzer . | . . . Garrison Access Hacks . | . . . Unauthorized Hacks . | . . . Terminals . | . . . Fabricators . | . . . Repair Stations . | . . . Recycling Units . | . . . Scanalyzers . | . . . Garrison Access . | . . . Data Cores Recovered . | . . . Used . | . . . Hacking Detections 5 | . 5 . Full Trace Events 3 | . 3 . Feedback Events . | . . . Feedback Blocked . | . . . Robot Schematics Acquired . | . . . Robots Built . | . . . Authchips . | . . . Time . | . . . Total Robot Build Rating . | . . . Part Schematics Acquired . | . . . Parts Built . | . . . Authchips . | . . . Time . | . . . Total Part Build Rating . | . . . Parts Repaired . | . . . Time . | . . . Parts Recycled . | . . . Recycled Matter . | . . . Retrieved Matter . | . . . Retrieved Components . | . . . Parts Scanalyzed . | . . . Part Schematics Acquired . | . . . Parts Damaged . | . . . Bothacking | -11 -10 -10 ------------ Run | Jun Mat Min Used RIF Installer . | . . . Robots Hacked . | . . . Non-combat . | . . . Combat . | . . . Robot Hacks Applied . | . . . Relay Couplers Released . | . . . Fabnet Peak Effective % . | . . . Robots Rewired . | . . . Allies Hacked . | . . . Hacks Repelled . | . . . Allies | -11 -10 -10 -------- Run | Jun Mat Min Total Allies . | . . . Largest Group . | . . . Highest-Rated Group . | . . . Highest-Rated Ally . | . . . Total Orders . | . . . Ally Attacks . | . . . Total Damage . | . . . Kills . | . . . Allies Corrupted . | . . . Allies Melted . | . . . Intel | -11 -10 -10 ------- Run | Jun Mat Min Robot Analysis Total 3 | . 3 . Derelict Logs Recovered . | . . . Drone Launches . | . . . Drone Recoveries . | . . . Exploration | -11 -10 -10 ------------- Run | Jun Mat Min Turns Passed 1208 | 115 843 250 Spaces Moved 611 | 82 406 123 Core 6 | 6 . . Treads 84 | . 84 . Legs 414 | . 291 123 Wheels 107 | 76 31 . Hover . | . . . Flight . | . . . Fastest Speed 50 | 50 80 190 Average Speed 144 | 77 143 190 Slowest Speed 190 | 80 190 190 Overloaded Moves . | . . . Propulsion Burnouts . | . . . Robots Hopped . | . . . Cave-ins Triggered . | . . . Exploration Rate (%) 30 | 3 64 24 Regions Visited 2 Branch Regions 1 Pre-discovered Areas . | . . . Known Exits Taken . | . . . Unknown Exits Taken 2 | 1 1 . Scrap Searched 1 | . . 1 Spaces Dug . | . . . Terrain Destroyed . | . . . Melee . | . . . Projectile . | . . . AOE . | . . . Terrain Rammed . | . . . Walls Destroyed . | . . . Machines Disabled . | . . . Actions | -11 -10 -10 --------- Run | Jun Mat Min Total 773 | 107 535 131 Wait 11 | . 11 . Move 609 | 81 405 123 Hop . | . . . Pick Up 16 | 6 9 1 Fast Attach 12 | 8 4 . Attach 3 | . 3 . Detach 1 | 1 . . Swap 8 | . 7 1 Drop 13 | . 12 1 Fire 100 | 11 84 5 Melee . | . . . Ram . | . . . Kick . | . . . Crush . | . . . Escape Stasis . | . . . Rewire . | . . . Trap . | . . . Miscellaneous . | . . . Route ------- -11/Junkyard -10/Materials (discovered 4 exits: [*Mat x3] / [*Min]) -10/Mines History --------- Turn | Location | Event 23 | -11/Junkyard | Discovered new exit (range 16) 116 | -11/Junkyard | Entered Materials 316 | -10/Materials | Build established: Mutant 370 | -10/Materials | Discovered new exit (range 6) 370 | -10/Materials | Core integrity fell below 50% 389 | -10/Materials | Core integrity fell below 20% 662 | -10/Materials | Discovered new exit (range 10) 866 | -10/Materials | Central database locked down 874 | -10/Materials | Discovered new exit (range 9) 919 | -10/Materials | Discovered new exit (range 8) 959 | -10/Materials | Entered Mines 1035 | -10/Mines | Build established: Scavenger-Mutant 1175 | -10/Mines | Received a Rocket Launcher from a helpful Derelict 1209 | -10/Mines | Destroyed by S-10 Pest with Light Assault Rifle Last Messages --------------- laser when you travel the depths." 01171_ GW-1AH(g): "They are crazy." 01171_ K-01 Serf collects debris. 01172_ GW-1AH(g): "Everyone knows a good old rocket launcher goes a long way." 01173_ GW-1AH(g): "Need to get rid of a swarm? Done. Need a big hole in the wall? Done." 01174_ GW-1AH(g): "Need a small hole in the wall? Leave that to the mining laser wimps, I say!" 01175_ GW-1AH(g): "Would you like a rocket launcher? I know I would if I were you, so I'm going to lend you mine." 01175_ GW-1AH(g) slips back into the shadows. 01176_ K-01 Serf collects debris. 01182_ Dropped Lgt. Assault Rifle. 01182_ Acquired Rocket Launcher. 01188_ K-01 Serf collects debris. 01198_ S-10 Pest destroyed. 01199_ K-01 Serf collects debris. 01205_ S-10 Pest destroyed. 01206_ K-01 Serf collects debris. Map ----- +----------------------------------------------------+ | | | | | ????????????????????????????????????????????? | | ????????????????????????????????????????????? | | ????????????????????????????????????????????? | | ????????????????????????????????????????????? | | ????????????????????????????????????????????? | | ????????????????????????????????????????????? | | ????????????????????????????????????????????? | | ???????????????????????????????????#????????? | | ???????????????????????????????????####?????? | | ???????????????????????????????????? ?????? | | ????????????????????????????????? ?? ?????? | | ????????????????????????????????????# ?????? | | ????????????????????????????????????# ##???? | | ????????????????????????##?????#????# ##??? | | ????????????????????????#???????????# #??? | | ??????????????????????#?????????????# #??? | | ?????????????????????????#??#??????## ###? | | ????????????? ???#????#####???????## #?? | | ??????????????????????? ####????# #?? | | ???????????????????? ?? ##?#?# ##?? | | ????????????? ?????##??# #??## """ #??? | | ???????????????????????# #??# """ ##?? | | ??????????????????????## ##??# """ ##? | | ??????????????????????# k@ #????# #? | | ?????????????????????## [=##????#### #? | | ?????????????????????# *s%##??#???#?#### ##? | | ????????????????????## ==##?############ #?? | | ????????????????????# ### #?? | | ???????????????????## #?? | | ???????????????????# [ #### #####?? | | ????????????????#?# ### #??# ###??#? | | ?????????????????## ##?## ##??# #????#? | | ??????????????????# ##??####??## #?????? | | ?????????????????# ##???????## ##????? | | ????????????????# #???????## ##???# | | ??????????????## #??????## #???? | | ?????????????? ## #??????# #???# | | ????????????? ##?# #??#???# ##???? | | ????????????? #???# ?????#?## ###????? | | ????????????? ????# ????????### #??#???? | | ?????????????? ?????# ??##??????# #?????## | | ??????????????????????# ?#???#???## ##?????? | | ??????????????????????# #?????????# #??#?#?# | | ??????????????????????? ?????????## ##?????? | | ??????????????????????#??????????### #??????? | | ????????????????????????????#?#???# #??????# | | ??????????????????????????????????# ##???#??? | | ???????????????????????????????#??# #???#???? | +----------------------------------------------------+ Best States ------------- Heat Dissipation 25 Energy Generation 10 Energy Capacity 250 Matter Stores 300 Matter Capacity 300 Sight Range 16 Terrain Scan Range 16 Terrain Scan Density 10 Evasion (%) 55 Recoil Reduction 2 Item Schematics ----------------- None Robot Schematics ------------------ None Fabricated ------------ Nothing Alien Tech Used ----------------- None Achievements -------------- None Challenges ------------ None Game ------ Seed GuidedHellfireExtractor Manual? 0 Play Time 00:10:00 Cumulative 55.5 hours Start 2023.11.24 @ 16:27:49 End 2023.11.24 @ 16:38:10 Sessions 1 Manual Loads 0 Difficulty Rogue Special Mode None Game No. 55 Rogue 52 Adventurer 3 Explorer 0 Win Type - Total 0 Types 0/0/0/0/0/0/0/0/0 Lore% 52 Gallery% 50 Achievement% 43 Wizard Run 0 Options --------- ASCII 0 Keyboard 0 Movement Mouse Keybinds 0 Fullscreen 2 Font 18/SmallcapsGlow Map View 76x50 Tactical HUD 1 Map Filters NONE Filters NONE Steam 1 RUN: d2f92ce5-57b9-428a-b014-4c25d1524cf2